fUSD/lending_fUSD_20250308
["ID","MTS","AMOUNT","RATE_DAILY","PERIOD"]
[355681944,1741455040929,-1807.79,8.937e-05,2]
[355681947,1741455040938,-3006.15,8.937e-05,2]
[355681950,1741455040947,-746.65,8.937e-05,2]
[355681953,1741455040957,-1049.77,8.937e-05,2]
[355681956,1741455040966,-500.0,8.937e-05,2]
[355681959,1741455040976,-500.0,8.937e-05,2]
[355681961,1741455040986,-9732.86,8.937e-05,2]
[355681963,1741455040996,-500.0,8.937e-05,2]
[355681965,1741455041006,-1291.03,8.937e-05,2]
[355681968,1741455041015,-500.0,8.937e-05,2]
[355681971,1741455041025,-1495.87,8.937e-05,2]
[355681974,1741455041034,-3154.67,8.937e-05,2]
[355681977,1741455041043,-1162.67,8.937e-05,2]
[355681980,1741455041053,-500.0,8.937e-05,2]
[355681983,1741455041062,-500.0,8.937e-05,2]
[355681986,1741455041072,-500.0,8.937e-05,2]
[355681989,1741455041081,-1070.55,8.937e-05,2]
[355681992,1741455041090,-500.0,8.937e-05,2]
[355681995,1741455041100,-744.97,8.937e-05,2]
[355681998,1741455041110,-500.0,8.937e-05,2]
[355682001,1741455041119,-1090.48,8.937e-05,2]
[355682004,1741455041129,-500.0,8.937e-05,2]
[355682007,1741455041138,-2607.05,8.937e-05,2]
[355682010,1741455041148,-500.0,8.937e-05,2]
[355682013,1741455041157,-854.62,8.937e-05,2]
[355682014,1741455041166,-500.0,8.937e-05,2]
[355682017,1741455041176,-584.26,8.937e-05,2]
[355682021,1741455041186,-1896.0,8.937e-05,2]
[355682024,1741455041195,-500.0,8.937e-05,2]
[355682027,1741455041205,-500.0,8.937e-05,2]
[355682030,1741455041214,-1093.44,8.937e-05,2]
[355682033,1741455041224,-2450.37,8.937e-05,2]
[355682036,1741455041234,-1304.38,8.937e-05,2]
[355682039,1741455041244,-1796.59,8.937e-05,2]
[355682042,1741455041254,-633.94,8.937e-05,2]
[355682045,1741455041264,-500.0,8.937e-05,2]
[355682048,1741455041273,-501.99,8.937e-05,2]
[355682051,1741455041283,-500.0,9.037e-05,2]
[355682054,1741455041293,-500.0,9.037e-05,2]
[355682057,1741455041302,-500.0,9.037e-05,2]
[355682060,1741455041311,-998.32,9.2e-05,2]
[355682063,1741455041321,-1012.0,9.202e-05,2]
[355682066,1741455041331,-150.0,9.202e-05,2]
[355682069,1741455041340,-642.0,9.202e-05,2]
[355682072,1741455041350,-500.0,9.211e-05,2]
[355682075,1741455041359,-1254.22,9.211e-05,2]
[355682078,1741455041368,-500.0,9.211e-05,2]
[355682081,1741455041377,-500.0,9.211e-05,2]
[355682084,1741455041386,-155.32769644,9.211e-05,2]
[355682087,1741455041396,-1589.45,9.211e-05,2]
[355682090,1741455041405,-152.29,9.211e-05,2]
[355682093,1741455041415,-400.12772077,9.211e-05,2]
[355682096,1741455041424,-751.02,9.211e-05,2]
[355682099,1741455041433,-1260.76,9.211e-05,2]
[355682102,1741455041442,-512.28,9.211e-05,2]
[355682105,1741455041451,-1334.25,9.211e-05,2]
[355682108,1741455041461,-1141.53,9.211e-05,2]
[355682111,1741455041470,-500.0,9.211e-05,2]
[355682114,1741455041481,-889.8,9.211e-05,2]
[355682118,1741455041491,-500.0,9.211e-05,2]
[355682121,1741455041501,-684.13,9.211e-05,2]
[355682124,1741455041511,-913.62,9.211e-05,2]
[355682127,1741455041520,-1642.13,9.211e-05,2]
[355682130,1741455041529,-500.0,9.211e-05,2]
[355682133,1741455041539,-500.0,9.211e-05,2]
[355682136,1741455041548,-4660.2,9.211e-05,2]
[355682139,1741455041557,-500.0,9.211e-05,2]
[355682142,1741455041567,-1807.79,9.211e-05,2]
[355682145,1741455041576,-3006.15,9.211e-05,2]
[355682148,1741455041585,-746.65,9.211e-05,2]
[355682151,1741455041595,-1049.77,9.211e-05,2]
[355682153,1741455041604,-500.0,9.211e-05,2]
[355682155,1741455041614,-500.0,9.211e-05,2]
[355682157,1741455041623,-9732.86,9.211e-05,2]
[355682160,1741455041632,-500.0,9.211e-05,2]
[355682162,1741455041641,-1291.03,9.211e-05,2]
[355682165,1741455041650,-500.0,9.211e-05,2]
[355682167,1741455041659,-1495.87,9.211e-05,2]
[355682169,1741455041668,-3154.67,9.211e-05,2]
[355682171,1741455041676,-1162.67,9.211e-05,2]
[355682173,1741455041685,-500.0,9.211e-05,2]
[355682175,1741455041694,-500.0,9.211e-05,2]
[355682177,1741455041703,-500.0,9.211e-05,2]
[355682179,1741455041712,-1070.55,9.211e-05,2]
[355682181,1741455041721,-500.0,9.211e-05,2]
[355682183,1741455041730,-744.97,9.211e-05,2]
[355682185,1741455041739,-500.0,9.211e-05,2]
[355682188,1741455041748,-1090.48,9.211e-05,2]
[355682191,1741455041757,-500.0,9.211e-05,2]
[355682194,1741455041767,-2607.05,9.211e-05,2]
[355682197,1741455041776,-500.0,9.211e-05,2]
[355682200,1741455041785,-854.62,9.211e-05,2]
[355682203,1741455041795,-500.0,9.211e-05,2]
[355682206,1741455041804,-584.26,9.211e-05,2]
[355682209,1741455041815,-1896.0,9.211e-05,2]
[355682212,1741455041824,-641.34792075,9.211e-05,2]
[355682215,1741455041834,-1093.44,9.211e-05,2]
[355682218,1741455041846,-2450.37,9.211e-05,2]
[355682221,1741455041855,-1304.38,9.211e-05,2]
[355682224,1741455041865,-1796.59,9.211e-05,2]
[355682227,1741455041875,-633.94,9.211e-05,2]
[355682230,1741455041884,-500.0,9.211e-05,2]
[355682233,1741455041894,-501.99,9.211e-05,2]
[355682236,1741455041904,-155.32769644,9.277e-05,2]
[355682238,1741455041914,-500.0,9.311e-05,2]
[355682241,1741455041925,-500.0,9.311e-05,2]
[355682243,1741455041934,-155.32769644,9.343e-05,2]
[355682246,1741455041943,-155.32769644,9.408e-05,2]
[355682248,1741455041953,-319.90399824,9.467e-05,2]
[355682250,1741455041962,-155.32769644,9.474e-05,2]
[355682253,1741455041971,-617.57,9.485e-05,2]
[355682255,1741455041981,-1254.22,9.485e-05,2]
[355682258,1741455041991,-500.0,9.485e-05,2]
[355682260,1741455042001,-500.0,9.485e-05,2]
[355682263,1741455042011,-1589.45,9.485e-05,2]
[355682266,1741455042022,-751.02,9.485e-05,2]
[355682269,1741455042031,-1260.76,9.485e-05,2]
[355682270,1741455042041,-512.28,9.485e-05,2]
[355682273,1741455042050,-1334.25,9.485e-05,2]
[355682276,1741455042060,-1141.53,9.485e-05,2]
[355682277,1741455042069,-500.0,9.485e-05,2]
[355682279,1741455042077,-889.8,9.485e-05,2]
[355682281,1741455042086,-500.0,9.485e-05,2]
[355682282,1741455042095,-684.13,9.485e-05,2]
[355682284,1741455042104,-913.62,9.485e-05,2]
[355682285,1741455042113,-1642.13,9.485e-05,2]
[355682287,1741455042124,-500.0,9.485e-05,2]
[355682288,1741455042134,-500.0,9.485e-05,2]
[355682290,1741455042144,-4660.2,9.485e-05,2]
[355682292,1741455042153,-500.0,9.485e-05,2]
[355682294,1741455042163,-1807.79,9.485e-05,2]
[355682295,1741455042173,-3006.15,9.485e-05,2]
[355682297,1741455042183,-746.65,9.485e-05,2]
[355682299,1741455042193,-1049.77,9.485e-05,2]
[355682300,1741455042203,-500.0,9.485e-05,2]
[355682302,1741455042213,-500.0,9.485e-05,2]
[355682304,1741455042223,-9732.86,9.485e-05,2]
[355682305,1741455042232,-500.0,9.485e-05,2]
[355682307,1741455042243,-1291.03,9.485e-05,2]
[355682309,1741455042252,-500.0,9.485e-05,2]
[355682310,1741455042262,-1495.87,9.485e-05,2]
[355682312,1741455042272,-3154.67,9.485e-05,2]
[355682314,1741455042281,-1162.67,9.485e-05,2]
[355682316,1741455042291,-500.0,9.485e-05,2]
[355682317,1741455042301,-500.0,9.485e-05,2]
[355682319,1741455042310,-500.0,9.485e-05,2]
[355682321,1741455042320,-1070.55,9.485e-05,2]
[355682322,1741455042329,-500.0,9.485e-05,2]
[355682324,1741455042340,-744.97,9.485e-05,2]
[355682326,1741455042349,-1090.48,9.485e-05,2]
[355682327,1741455042358,-500.0,9.485e-05,2]
[355682328,1741455042368,-500.0,9.485e-05,2]
[355682329,1741455042377,-2607.05,9.485e-05,2]
[355682330,1741455042387,-854.62,9.485e-05,2]
[355682331,1741455042396,-500.0,9.485e-05,2]
[355682333,1741455042406,-500.0,9.485e-05,2]
[355682335,1741455042416,-584.26,9.485e-05,2]
[355682337,1741455042425,-1896.0,9.485e-05,2]
[355682338,1741455042434,-2450.37,9.485e-05,2]
[355682340,1741455042443,-1093.44,9.485e-05,2]
[355682342,1741455042452,-1304.38,9.485e-05,2]
[355682344,1741455042461,-1796.59,9.485e-05,2]
[355682346,1741455042472,-633.94,9.485e-05,2]
[355682348,1741455042481,-500.0,9.485e-05,2]
[355682350,1741455042491,-501.99,9.485e-05,2]
[355682352,1741455042500,-155.32769644,9.54e-05,2]
[355682354,1741455042508,-500.0,9.584e-05,2]
[355682356,1741455042518,-500.0,9.585e-05,2]
[355682358,1741455042528,-416.41013227,9.585e-05,2]
[355682360,1741455042538,-1000.0,9.585e-05,2]
[355682362,1741455042548,-500.0,9.585e-05,2]
[355682364,1741455042558,-2583.51,9.585e-05,2]
[355682366,1741455042568,-500.0,9.585e-05,2]
[355682368,1741455042579,-1999.26,9.585e-05,2]
[355682370,1741455042589,-1364.98,9.585e-05,2]
[355682372,1741455042599,-500.0,9.585e-05,2]
[355682374,1741455042609,-1933.2,9.585e-05,2]
[355682376,1741455042619,-3441.58,9.585e-05,2]
[355682378,1741455042630,-1821.93,9.585e-05,2]
[355682380,1741455042640,-500.0,9.585e-05,2]
[355682382,1741455042650,-500.0,9.585e-05,2]
[355682384,1741455042659,-500.0,9.585e-05,2]
[355682386,1741455042668,-159.0,9.585e-05,3]
[355682388,1741455042679,-500.0,9.585e-05,2]
[355682392,1741455042690,-500.0,9.585e-05,2]
[355682395,1741455042700,-255.26836986,9.585e-05,2]
[355682396,1741455042709,-500.0,9.586e-05,2]
[355682399,1741455042718,-500.0,9.586e-05,2]
[355682401,1741455042727,-500.0,9.586e-05,2]
[355682404,1741455042737,-500.0,9.586e-05,2]
[355682408,1741455042747,-500.0,9.586e-05,2]
[355682411,1741455042756,-554.47,9.586e-05,2]
[355682412,1741455042766,-500.0,9.586e-05,2]
[355682414,1741455042775,-583.84,9.586e-05,2]
[355682416,1741455042784,-500.0,9.586e-05,2]
[355682418,1741455042794,-629.6,9.586e-05,2]
[355682421,1741455042803,-797.22,9.586e-05,2]
[355682423,1741455042813,-500.0,9.586e-05,2]
[355682425,1741455042823,-500.0,9.586e-05,2]
[355682427,1741455042838,-500.0,9.586e-05,2]
[355682430,1741455042848,-500.0,9.586e-05,2]
[355682433,1741455042858,-500.0,9.586e-05,2]
[355682435,1741455042867,-500.0,9.586e-05,2]
[355682437,1741455042878,-583.53,9.586e-05,2]
[355682439,1741455042888,-500.0,9.586e-05,2]
[355682462,1741455043099,-500.0,9.586e-05,2]
[355682464,1741455043109,-500.0,9.586e-05,2]
[355682466,1741455043120,-721.54,9.586e-05,2]
[355682468,1741455043129,-500.0,9.586e-05,2]
[355682470,1741455043139,-500.0,9.586e-05,2]
[355682472,1741455043149,-1045.62,9.586e-05,2]
[355682474,1741455043159,-497.74405422,9.586e-05,2]
[355682476,1741455043168,-500.0,9.586e-05,2]
[355682477,1741455043178,-500.0,9.586e-05,2]
[355682478,1741455043188,-500.0,9.586e-05,2]
[355682480,1741455043197,-500.0,9.586e-05,2]
[355682483,1741455043207,-500.0,9.586e-05,2]
[355682486,1741455043216,-500.0,9.586e-05,2]
[355682488,1741455043226,-500.0,9.586e-05,2]
[355682492,1741455043236,-501.97,9.586e-05,2]
[355682494,1741455043245,-500.0,9.586e-05,2]
[355682497,1741455043255,-716.45,9.586e-05,2]
[355682501,1741455043274,-500.0,9.586e-05,2]
[355682503,1741455043285,-500.0,9.586e-05,2]
[355682505,1741455043295,-500.0,9.586e-05,2]
[355682507,1741455043306,-500.0,9.586e-05,2]
[355682509,1741455043315,-500.0,9.586e-05,2]
[355682513,1741455043326,-500.0,9.586e-05,2]
[355682516,1741455043336,-500.0,9.587e-05,2]
[355682518,1741455043346,-338.44,9.59e-05,2]
[355682519,1741455043356,-16400.0,9.6e-05,3]
[355682520,1741455043366,-1000.0,9.6e-05,2]
[355682522,1741455043375,-155.32769644,9.606e-05,2]
[355682525,1741455043385,-155.32769644,9.671e-05,2]
[355682526,1741455043396,-3200.0,9.7e-05,3]
[355682527,1741455043408,-155.32769644,9.737e-05,2]
[355682528,1741455043418,-168.376,9.757e-05,2]
[355682529,1741455043428,-3649.939,9.757e-05,2]
[355682530,1741455043438,-654.34,9.759e-05,2]
[355682531,1741455043448,-500.0,9.759e-05,2]
[355682532,1741455043458,-500.0,9.759e-05,2]
[355682533,1741455043468,-500.0,9.759e-05,2]
[355682534,1741455043478,-500.0,9.759e-05,2]
[355682535,1741455043488,-500.0,9.759e-05,2]
[355682536,1741455043498,-500.0,9.759e-05,2]
[355682537,1741455043508,-500.0,9.759e-05,2]
[355682539,1741455043518,-335.75129593,9.759e-05,2]
[355682541,1741455043528,-500.0,9.759e-05,2]
[355682543,1741455043538,-500.0,9.759e-05,2]
[355682545,1741455043548,-500.0,9.759e-05,2]
[355682547,1741455043557,-500.0,9.759e-05,2]
[355682549,1741455043567,-500.0,9.759e-05,2]
[355682552,1741455043578,-500.0,9.759e-05,2]
[355682554,1741455043588,-500.0,9.759e-05,2]
[355682556,1741455043598,-500.0,9.759e-05,2]
[355682558,1741455043607,-500.0,9.759e-05,2]
[355682560,1741455043617,-500.0,9.759e-05,2]
[355682562,1741455043626,-500.0,9.759e-05,2]
[355682564,1741455043634,-206.852576,9.759e-05,2]
[355682566,1741455043644,-536.70492808,9.759e-05,2]
[355682568,1741455043654,-500.0,9.759e-05,2]
[355682570,1741455043663,-326.716372,9.759e-05,2]
[355682572,1741455043673,-500.0,9.759e-05,2]
[355682574,1741455043683,-500.0,9.759e-05,2]
[355682576,1741455043693,-540.26,9.759e-05,2]
[355682578,1741455043703,-562.99,9.759e-05,2]
[355682580,1741455043712,-500.0,9.759e-05,2]
[355682582,1741455043722,-659.96,9.759e-05,2]
[355682584,1741455043731,-337.003759,9.759e-05,2]
[355682586,1741455043741,-660.01,9.759e-05,2]
[355682587,1741455043750,-534.47,9.759e-05,2]
[355682588,1741455043760,-500.0,9.759e-05,2]
[355682589,1741455043769,-500.0,9.759e-05,2]
[355682590,1741455043778,-556.74,9.759e-05,2]
[355682591,1741455043788,-500.0,9.759e-05,2]
[355682592,1741455043798,-500.0,9.759e-05,2]
[355682593,1741455043807,-500.0,9.759e-05,2]
[355682594,1741455043817,-500.0,9.759e-05,2]
[355682595,1741455043827,-199.58018907,9.759e-05,2]
[355682596,1741455043838,-500.0,9.759e-05,2]
[355682597,1741455043849,-524.58,9.759e-05,2]
[355682598,1741455043859,-629.38,9.759e-05,2]
[355682599,1741455043870,-500.0,9.759e-05,2]
[355682600,1741455043881,-595.98,9.759e-05,2]
[355682601,1741455043891,-500.0,9.759e-05,2]
[355682602,1741455043902,-500.0,9.759e-05,2]
[355682603,1741455043912,-500.0,9.759e-05,2]
[355682604,1741455043924,-883.06,9.759e-05,2]
[355682605,1741455043934,-500.0,9.759e-05,2]
[355682606,1741455043945,-746.1,9.759e-05,2]
[355682607,1741455043954,-565.74,9.759e-05,2]
[355682608,1741455043965,-1047.96,9.759e-05,2]
[355682609,1741455043974,-887.83,9.759e-05,2]
[355682610,1741455043985,-500.0,9.759e-05,2]
[355682611,1741455043995,-911.14,9.759e-05,2]
[355682612,1741455044005,-965.26,9.759e-05,2]
[355682613,1741455044015,-602.12,9.759e-05,2]
[355682614,1741455044026,-1522.49,9.759e-05,2]
[355682615,1741455044036,-500.0,9.759e-05,2]
[355682616,1741455044046,-1043.33,9.759e-05,2]
[355682617,1741455044057,-500.0,9.759e-05,2]
[355682618,1741455044067,-3371.34,9.759e-05,2]
[355682619,1741455044077,-500.0,9.759e-05,2]
[355682620,1741455044086,-740.8,9.759e-05,2]
[355682621,1741455044096,-707.27,9.759e-05,2]
[355682622,1741455044106,-514.33,9.759e-05,2]
[355682623,1741455044117,-1847.4,9.759e-05,2]
[355682624,1741455044127,-500.0,9.759e-05,2]
[355682625,1741455044137,-822.96,9.759e-05,2]
[355682626,1741455044148,-794.59,9.759e-05,2]
[355682627,1741455044158,-500.0,9.759e-05,2]
[355682628,1741455044168,-725.32,9.759e-05,2]
[355682629,1741455044178,-1552.48,9.759e-05,2]
[355682630,1741455044188,-500.0,9.759e-05,2]
[355682631,1741455044198,-1162.89,9.759e-05,2]
[355682632,1741455044208,-500.0,9.759e-05,2]
[355682633,1741455044219,-500.0,9.759e-05,2]
[355682634,1741455044228,-877.09,9.759e-05,2]
[355682635,1741455044240,-1177.09,9.759e-05,2]
[355682636,1741455044250,-500.0,9.759e-05,2]
[355682637,1741455044259,-1582.9,9.759e-05,2]
[355682638,1741455044270,-671.83,9.759e-05,2]
[355682639,1741455044280,-992.4,9.759e-05,2]
[355682640,1741455044291,-3118.88,9.759e-05,2]
[355682641,1741455044300,-1052.28,9.759e-05,2]
[355682642,1741455044310,-500.0,9.759e-05,2]
[355682643,1741455044320,-641.21,9.759e-05,2]
[355682644,1741455044329,-3803.4,9.759e-05,2]
[355682645,1741455044340,-946.98,9.759e-05,2]
[355682646,1741455044350,-500.0,9.759e-05,2]
[355682647,1741455044360,-188.52,9.759e-05,2]
[355682648,1741455044371,-1254.22,9.759e-05,2]
[355682649,1741455044383,-500.0,9.759e-05,2]
[355682650,1741455044394,-355.64,9.759e-05,2]
[355682651,1741455044403,-1589.45,9.759e-05,2]
[355682652,1741455044412,-751.02,9.759e-05,2]
[355682653,1741455044422,-1260.76,9.759e-05,2]
[355682654,1741455044433,-512.28,9.759e-05,2]
[355682655,1741455044442,-1334.25,9.759e-05,2]
[355682656,1741455044452,-1141.53,9.759e-05,2]
[355682657,1741455044462,-500.0,9.759e-05,2]
[355682658,1741455044471,-889.8,9.759e-05,2]
[355682659,1741455044480,-500.0,9.759e-05,2]
[355682660,1741455044490,-684.13,9.759e-05,2]
[355682661,1741455044500,-913.62,9.759e-05,2]
[355682662,1741455044509,-1642.13,9.759e-05,2]
[355682663,1741455044519,-500.0,9.759e-05,2]
[355682664,1741455044529,-213.48142508,9.759e-05,2]
[355682665,1741455044539,-4660.2,9.759e-05,2]
[355682666,1741455044549,-500.0,9.759e-05,2]
[355682667,1741455044559,-1807.79,9.759e-05,2]
[355682668,1741455044569,-3006.15,9.759e-05,2]
[355682669,1741455044578,-746.65,9.759e-05,2]
[355682670,1741455044587,-1049.77,9.759e-05,2]
[355682671,1741455044598,-611.94201656,9.759e-05,2]
[355682672,1741455044608,-500.0,9.759e-05,2]
[355682673,1741455044619,-9732.86,9.759e-05,2]
[355682674,1741455044629,-500.0,9.759e-05,2]
[355682675,1741455044639,-1291.03,9.759e-05,2]
[355682676,1741455044649,-500.0,9.759e-05,2]
[355682677,1741455044659,-1495.87,9.759e-05,2]
[355682678,1741455044671,-3154.67,9.759e-05,2]
[355682679,1741455044683,-1162.67,9.759e-05,2]
[355682680,1741455044692,-500.0,9.759e-05,2]
[355682681,1741455044702,-500.0,9.759e-05,2]
[355682682,1741455044712,-500.0,9.759e-05,2]
[355682683,1741455044722,-1070.55,9.759e-05,2]
[355682684,1741455044732,-500.0,9.759e-05,2]
[355682685,1741455044742,-744.97,9.759e-05,2]
[355682686,1741455044752,-1090.48,9.759e-05,2]
[355682687,1741455044761,-500.0,9.759e-05,2]
[355682688,1741455044771,-500.0,9.759e-05,2]
[355682689,1741455044781,-2607.05,9.759e-05,2]
[355682690,1741455044791,-854.62,9.759e-05,2]
[355682691,1741455044800,-500.0,9.759e-05,2]
[355682692,1741455044810,-392.00153199,9.759e-05,2]
[355682693,1741455044820,-584.26,9.759e-05,2]
[355682694,1741455044830,-1896.0,9.759e-05,2]
[355682695,1741455044841,-2450.37,9.759e-05,2]
[355682696,1741455044852,-1304.38,9.759e-05,2]
[355682697,1741455044863,-1093.44,9.759e-05,2]
[355682698,1741455044873,-1796.59,9.759e-05,2]
[355682699,1741455044883,-633.94,9.759e-05,2]
[355682700,1741455044893,-500.0,9.759e-05,2]
[355682701,1741455044902,-501.99,9.759e-05,2]
[355682702,1741455044912,-10478.85853417,9.772e-05,2]
[355682703,1741455044922,-1000.0,9.8e-05,2]
[355682704,1741455044932,-3200.0,9.8e-05,3]
[355682705,1741455044942,-155.32769644,9.803e-05,2]
[355682706,1741455044952,-2995.0,9.847e-05,2]
[355682707,1741455044962,-500.0,9.858e-05,2]
[355682708,1741455044972,-500.0,9.859e-05,2]
[355682709,1741455044982,-200.68901673,9.859e-05,2]
[355682710,1741455044991,-500.0,9.859e-05,2]
[355682711,1741455045001,-500.0,9.859e-05,2]
[355682712,1741455045011,-500.0,9.859e-05,2]
[355682713,1741455045022,-500.0,9.859e-05,2]
[355682714,1741455045034,-237.71977723,9.859e-05,2]
[355682715,1741455045044,-500.0,9.859e-05,2]
[355682716,1741455045053,-500.0,9.859e-05,2]
[355682717,1741455045063,-500.0,9.859e-05,2]
[355682718,1741455045073,-605.5468592,9.859e-05,2]
[355682719,1741455045082,-500.0,9.859e-05,2]
[355682720,1741455045092,-500.0,9.859e-05,2]
[355682721,1741455045103,-500.0,9.859e-05,2]
[355682722,1741455045114,-500.0,9.859e-05,2]
[355682723,1741455045125,-500.0,9.859e-05,2]
[355682724,1741455045134,-500.0,9.859e-05,2]
[355682725,1741455045144,-500.0,9.859e-05,2]
[355682726,1741455045154,-530.38485623,9.859e-05,2]
[355682727,1741455045165,-500.0,9.859e-05,2]
[355682728,1741455045176,-500.0,9.859e-05,2]
[355682729,1741455045187,-386.13249952,9.859e-05,2]
[355682730,1741455045197,-267.63123561,9.859e-05,2]
[355682731,1741455045207,-500.0,9.859e-05,2]
[355682732,1741455045216,-1000.0,9.859e-05,2]
[355682733,1741455045226,-500.0,9.859e-05,2]
[355682734,1741455045236,-2583.51,9.859e-05,2]
[355682735,1741455045246,-500.0,9.859e-05,2]
[355682736,1741455045255,-1999.26,9.859e-05,2]
[355682737,1741455045266,-1364.98,9.859e-05,2]
[355682738,1741455045275,-484.37453205,9.859e-05,2]
[355682739,1741455045285,-1933.2,9.859e-05,2]
[355682740,1741455045294,-3441.58,9.859e-05,2]
[355682741,1741455045305,-1821.93,9.859e-05,2]
[355682742,1741455045316,-500.0,9.859e-05,2]
[355682743,1741455045326,-500.0,9.86e-05,2]
[355682744,1741455045337,-500.0,9.86e-05,2]
[355682745,1741455045347,-500.0,9.86e-05,2]
[355682746,1741455045359,-500.0,9.86e-05,2]
[355682747,1741455045369,-500.0,9.86e-05,2]
[355682748,1741455045379,-554.47,9.86e-05,2]
[355682749,1741455045389,-500.0,9.86e-05,2]
[355682750,1741455045398,-583.84,9.86e-05,2]
[355682751,1741455045408,-500.0,9.86e-05,2]
[355682752,1741455045417,-629.6,9.86e-05,2]
[355682753,1741455045427,-797.22,9.86e-05,2]
[355682754,1741455045437,-500.0,9.86e-05,2]
[355682755,1741455045446,-500.0,9.86e-05,2]
[355682756,1741455045456,-500.0,9.86e-05,2]
[355682757,1741455045466,-500.0,9.86e-05,2]
[355682758,1741455045476,-500.0,9.86e-05,2]
[355682759,1741455045486,-583.53,9.86e-05,2]
[355682760,1741455045496,-500.0,9.86e-05,2]
[355682761,1741455045505,-500.0,9.86e-05,2]
[355682762,1741455045515,-500.0,9.86e-05,2]
[355682763,1741455045525,-721.54,9.86e-05,2]
[355682764,1741455045535,-500.0,9.86e-05,2]
[355682765,1741455045545,-1045.62,9.86e-05,2]
[355682766,1741455045554,-500.0,9.86e-05,2]
[355682767,1741455045564,-500.0,9.86e-05,2]
[355682768,1741455045574,-500.0,9.86e-05,2]
[355682769,1741455045583,-500.0,9.86e-05,2]
[355682770,1741455045592,-171.67404171,9.86e-05,2]
[355682772,1741455045602,-500.0,9.86e-05,2]
[355682774,1741455045612,-500.0,9.86e-05,2]
[355682776,1741455045622,-501.97,9.86e-05,2]
[355682778,1741455045632,-500.0,9.86e-05,2]
[355682780,1741455045642,-716.45,9.86e-05,2]
[355682782,1741455045652,-500.0,9.86e-05,2]
[355682784,1741455045662,-500.0,9.86e-05,2]
[355682785,1741455045672,-500.0,9.86e-05,2]
[355682786,1741455045681,-500.0,9.86e-05,2]
[355682787,1741455045691,-500.0,9.86e-05,2]
[355682789,1741455045700,-500.0,9.86e-05,2]
[355682791,1741455045710,-500.0,9.861e-05,2]
[355682795,1741455045719,-671.6888416,9.867e-05,2]
[355682800,1741455045730,-155.32769644,9.869e-05,2]
[355682803,1741455045740,-5864.7483,9.9e-05,2]
[355682807,1741455045751,-593.4363,9.9e-05,2]
[355682811,1741455045761,-1000.0,9.9e-05,2]
[355682813,1741455045770,-3200.0,9.9e-05,3]
[355682817,1741455045780,-155.32769644,9.934e-05,2]
[355682822,1741455045789,-80456.0,9.973e-05,2]
[355682826,1741455045799,-5800.0,9.985e-05,2]
[355682831,1741455045809,-4000.0,9.997e-05,2]
[355682836,1741455045819,-2049.75,9.999e-05,2]
[355682840,1741455045829,-1205.15026183,9.999e-05,3]
[355682844,1741455045841,-324.93982738,0.0001,2]
[355682848,1741455045850,-308412.257491,0.0001,2]
[355682852,1741455045860,-1033755.99552006,0.0001,2]
[355682882,1741455046123,-43403.84709875,0.0001,2]
[355682885,1741455046138,-440.86,0.0001,2]
[355682906,1741455046605,-929.3718791,8.663e-05,2]
[355682907,1741455054588,-329.2781209,8.663e-05,2]
[355682908,1741455054598,-638.64,8.663e-05,2]
[355682909,1741455054608,-500.0,8.663e-05,2]
[355682910,1741455054618,-1076.41,8.663e-05,2]
[355682911,1741455054627,-500.0,8.663e-05,2]
[355682912,1741455054635,-1258.65,8.937e-05,2]
[355682913,1741455054645,-500.0,8.937e-05,2]
[355682914,1741455054654,-638.64,8.937e-05,2]
[355682915,1741455054664,-242.17,8.937e-05,2]
[355682916,1741455054673,-1258.65,9.211e-05,2]
[355682917,1741455054683,-638.64,9.211e-05,2]
[355682918,1741455054693,-1258.65,9.485e-05,2]
[355682919,1741455054703,-65.7718791,9.759e-05,2]
[355682920,1741455054719,-1192.8781209,9.759e-05,2]
[355682921,1741455054728,-1019.6218841,0.0001,2]
[355682922,1741455054740,-438.865,0.0001,2]